bitfinex/quotes_BTCUSD_20251004
["timestamp","ask_amount","ask_price","bid_price","bid_amount"]
[1759588331343,0.2466811,122280.0,122270.0,0.32865287]
[1759588332438,0.2466811,122280.0,122270.0,0.33165287]
[1759588332646,0.2466811,122280.0,122270.0,0.33665287]
[1759588334136,0.27122845,122280.0,122270.0,0.33665287]
[1759588335865,0.27122845,122280.0,122270.0,0.3370605]
[1759588337771,0.34995931,122280.0,122270.0,0.3370605]
[1759588346481,0.27122845,122280.0,122270.0,0.3370605]
[1759588349767,0.27317845,122280.0,122270.0,0.3370605]
[1759588350407,0.20675945,122280.0,122270.0,0.3370605]
[1759588353350,0.20994945,122280.0,122270.0,0.3370605]
[1759588354280,0.20675945,122280.0,122270.0,0.3370605]
[1759588355443,0.1802621,122280.0,122270.0,0.50063292]
[1759588355648,0.1802621,122280.0,122270.0,0.3370605]
[1759588357327,0.1855121,122280.0,122270.0,0.3370605]
[1759588358669,0.1823221,122280.0,122270.0,0.3370605]
[1759588358882,0.1802621,122280.0,122270.0,0.3370605]
[1759588360213,0.1855121,122280.0,122270.0,0.3370605]
[1759588362928,3.1855121,122280.0,122270.0,0.3370605]
[1759588364199,3.1823221,122280.0,122270.0,0.3370605]
[1759588364990,3.1823221,122280.0,122270.0,0.0219005]
[1759588365198,3.1823221,122280.0,122270.0,0.3370605]
[1759588365863,3.1823221,122280.0,122270.0,0.0219005]
[1759588366067,3.1855121,122280.0,122270.0,0.3370605]
[1759588374190,3.1802621,122280.0,122270.0,0.085]
[1759588374564,3.1802621,122280.0,122270.0,0.10135724]
[1759588374773,3.17874143,122280.0,122270.0,0.10135724]
[1759588374961,3.17856853,122280.0,122270.0,0.10135724]
[1759588375471,3.17856853,122280.0,122270.0,0.33151724]
[1759588375624,3.17856853,122280.0,122270.0,0.31516]
[1759588375850,3.17856853,122280.0,122270.0,0.3286075]
[1759588380121,3.18366853,122280.0,122270.0,0.3286075]
[1759588380360,3.17856853,122280.0,122270.0,0.3286075]
[1759588381284,3.16355904,122280.0,122270.0,4.78805392]
[1759588382806,3.16355904,122280.0,122270.0,4.47289392]
[1759588383040,3.16355904,122280.0,122270.0,4.78805392]
[1759588383257,3.16355904,122280.0,122270.0,4.47289392]
[1759588383376,3.16570904,122280.0,122270.0,4.78805392]
[1759588383629,3.16355904,122280.0,122270.0,4.78805392]
[1759588384295,3.0,122280.0,122270.0,4.78805392]
[1759588384710,3.16355904,122280.0,122270.0,4.86138098]
[1759588384946,3.0,122280.0,122270.0,4.86138098]
[1759588386810,3.16355904,122280.0,122270.0,4.86138098]
[1759588387016,3.0,122280.0,122270.0,4.86138098]
[1759588387393,3.16355904,122280.0,122270.0,4.86138098]
[1759588388014,3.0,122280.0,122270.0,4.86138098]
[1759588388222,3.16355904,122280.0,122270.0,4.86138098]
[1759588390049,3.16865904,122280.0,122270.0,4.78805392]
[1759588390478,3.16570904,122280.0,122270.0,4.78805392]
[1759588390699,3.16355904,122280.0,122270.0,4.47289392]
[1759588390912,3.16355904,122280.0,122270.0,4.78805392]
[1759588392866,3.16355904,122280.0,122270.0,4.47289392]
[1759588393103,3.16355904,122280.0,122270.0,4.78801392]
[1759588393318,3.16355904,122280.0,122270.0,4.47289392]
[1759588393535,3.16355904,122280.0,122270.0,4.78801392]
[1759588394614,3.16355904,122280.0,122270.0,4.47289392]
[1759588394821,3.16355904,122280.0,122270.0,4.78801392]
[1759588395269,3.16865904,122280.0,122270.0,4.78801392]
[1759588395919,3.16570904,122280.0,122270.0,4.78801392]
[1759588396132,3.16570904,122280.0,122270.0,4.6244415]
[1759588396378,3.16355904,122280.0,122270.0,4.6244415]
[1759588397076,3.16865904,122280.0,122270.0,4.6244415]
[1759588397703,3.16355904,122280.0,122270.0,4.6244415]
[1759588397914,3.16355904,122280.0,122270.0,4.78801392]
[1759588398584,3.16355904,122280.0,122270.0,4.6244415]
[1759588400648,3.16355904,122280.0,122270.0,4.3093215]
[1759588400926,3.16355904,122280.0,122270.0,4.6244415]
[1759588401141,3.16865904,122280.0,122270.0,4.6244415]
[1759588403925,3.0,122280.0,122270.0,5.20134098]
[1759588404177,3.0,122280.0,122270.0,5.22588303]
[1759588412777,3.0,122280.0,122270.0,4.91076303]
[1759588413133,3.0051,122280.0,122270.0,5.20134098]
[1759588413629,3.0051,122280.0,122270.0,5.12801392]
[1759588413828,3.0051,122280.0,122270.0,4.81289392]
[1759588414080,3.16865904,122280.0,122270.0,5.12801392]
[1759588414271,3.0051,122280.0,122270.0,5.12801392]
[1759588415346,3.16865904,122280.0,122270.0,5.12801392]
[1759588415766,3.0051,122280.0,122270.0,5.12801392]
[1759588416426,3.002,122280.0,122270.0,5.12801392]
[1759588416677,3.0,122280.0,122270.0,5.12801392]
[1759588417323,3.0,122280.0,122270.0,5.20134098]
[1759588419686,3.0,122280.0,122270.0,5.22588448]
[1759588420110,3.002,122280.0,122270.0,5.22588448]
[1759588420328,3.0051,122280.0,122270.0,5.22588448]
[1759588420544,3.0,122280.0,122270.0,5.22588448]
[1759588422804,3.0,122280.0,122270.0,4.98354292]
[1759588422938,3.0,122280.0,122270.0,0.84323592]
[1759588423139,3.0,122280.0,122270.0,4.98354292]
[1759588425726,3.0051,122280.0,122270.0,4.98354292]
[1759588426388,3.0051,122280.0,122270.0,5.00775991]
[1759588426584,3.002,122280.0,122270.0,5.00775991]
[1759588426793,3.0,122280.0,122270.0,5.00775991]
[1759588433098,3.0,122280.0,122270.0,5.08108697]
[1759588433337,3.16355904,122280.0,122270.0,5.08108697]
[1759588434146,3.16865904,122280.0,122270.0,4.76596697]
[1759588434351,3.16865904,122280.0,122270.0,5.08108697]
[1759588434776,3.16355904,122280.0,122270.0,5.08108697]
[1759588435141,3.16865904,122280.0,122270.0,5.08108697]
[1759588438234,3.16355904,122280.0,122270.0,5.08108697]
[1759588439326,3.16355904,122280.0,122270.0,4.99608697]
[1759588439470,3.16355904,122280.0,122270.0,5.08108697]
[1759588439471,3.16862904,122280.0,122270.0,5.08108697]
[1759588439880,3.16862904,122280.0,122270.0,4.91751455]
[1759588440084,3.16862904,122280.0,122270.0,5.08108697]
[1759588440645,3.16862904,122280.0,122270.0,4.60239455]
[1759588440856,3.16862904,122280.0,122270.0,4.83251455]
[1759588441086,3.16862904,122280.0,122270.0,4.89297105]
[1759588442496,3.25284311,122280.0,122270.0,4.55297105]
[1759588444482,3.25284311,122280.0,122270.0,4.47964399]
[1759588446305,3.16862904,122280.0,122270.0,4.47964399]
[1759588449126,0.16357242,122270.0,122260.0,0.09787056]
[1759588449328,0.16558242,122270.0,122260.0,4.455427]
[1759588449526,0.16865242,122270.0,122260.0,4.455427]
[1759588449776,0.16865242,122270.0,122260.0,4.45563084]
[1759588450496,0.16558242,122270.0,122260.0,4.62121664]
[1759588450653,0.16858242,122270.0,122260.0,4.62121664]
[1759588450859,0.16657242,122270.0,122260.0,4.61921664]
[1759588451075,0.003,122270.0,122260.0,4.61921664]
[1759588451486,0.003,122270.0,122260.0,4.6925437]
[1759588451682,0.003,122270.0,122260.0,4.72568933]
[1759588456611,0.003,122270.0,122260.0,5.06568933]
[1759588456829,0.003,122270.0,122260.0,5.09023283]
[1759588457490,3.00054734,122280.0,122270.0,0.16357242]
[1759588457698,3.00054734,122280.0,122270.0,4.53399942]
[1759588457899,3.00054734,122280.0,122270.0,4.60732648]
[1759588458345,3.00054734,122280.0,122270.0,4.63186998]
[1759588459415,3.00054734,122280.0,122270.0,4.97186998]
[1759588459587,3.00354734,122280.0,122270.0,4.97186998]
[1759588481403,3.00354734,122280.0,122270.0,4.89854292]
[1759588481594,3.00354734,122280.0,122270.0,4.66842292]
[1759588481911,3.00354734,122280.0,122270.0,4.98354292]
[1759588485844,3.00354734,122280.0,122270.0,4.66842292]
[1759588486044,3.00354734,122280.0,122270.0,4.98354292]
[1759588486501,3.00354734,122280.0,122270.0,5.08615777]
[1759588492958,3.00354734,122280.0,122270.0,4.77103777]
[1759588493186,3.00354734,122280.0,122270.0,5.00115777]
[1759588493401,3.00354734,122280.0,122270.0,5.08615777]
[1759588493783,3.00354734,122280.0,122270.0,4.77103777]
[1759588493997,3.00354734,122280.0,122270.0,5.08615777]
[1759588494189,3.00354734,122280.0,122270.0,4.77103777]
[1759588494367,3.00354734,122280.0,122270.0,5.08615777]
[1759588494805,3.00567734,122280.0,122270.0,4.77103777]
[1759588494972,3.00889734,122280.0,122270.0,5.08615777]
[1759588495388,3.00354734,122280.0,122270.0,5.00115777]
[1759588495633,3.00567734,122280.0,122270.0,4.77103777]
[1759588495798,3.00889734,122280.0,122270.0,5.00115777]
[1759588495998,3.00354734,122280.0,122270.0,5.08615777]
[1759588499244,3.00567734,122280.0,122270.0,4.77103777]
[1759588499462,3.00354734,122280.0,122270.0,5.08615777]
[1759588499892,3.00354734,122280.0,122270.0,5.00115777]
[1759588500090,3.00552734,122280.0,122270.0,4.77103777]
[1759588500344,3.00875734,122280.0,122270.0,4.75342292]
[1759588500562,3.00875734,122280.0,122270.0,4.98354292]
[1759588502966,3.00875734,122280.0,122270.0,5.05706024]
[1759588506238,3.00875734,122280.0,122270.0,4.88920381]
[1759588506458,3.00875734,122280.0,122270.0,4.97925891]
[1759588506855,3.00875734,122280.0,122270.0,4.66413891]
[1759588507006,3.00875734,122280.0,122270.0,4.97925891]
[1759588516205,3.00875734,122280.0,122270.0,5.05277623]
[1759588517206,3.17231638,122280.0,122270.0,5.05277623]
[1759588518072,3.17231638,122280.0,122270.0,4.68823273]
[1759588518271,3.17231638,122280.0,122270.0,4.61471541]
[1759588519597,3.17231638,122280.0,122270.0,4.45114299]
[1759588519804,3.17231638,122280.0,122270.0,4.61471541]
[1759588522237,3.17231638,122280.0,122270.0,4.45114299]
[1759588522825,3.17231638,122280.0,122270.0,4.61471541]
[1759588523088,3.17231638,122280.0,122270.0,4.45114299]
[1759588523507,3.17231638,122280.0,122270.0,4.61471541]
[1759588528401,3.17231638,122280.0,122270.0,4.52466031]
[1759588528598,3.17231638,122280.0,122270.0,4.68823273]
[1759588529037,3.17231638,122280.0,122270.0,4.60323273]
[1759588529244,3.17231638,122280.0,122270.0,4.68823273]
[1759588529756,3.17231638,122280.0,122270.0,4.60323273]
[1759588530041,3.17231638,122280.0,122270.0,4.68823273]
[1759588533078,3.17231638,122280.0,122270.0,4.52466031]
[1759588533906,3.17231638,122280.0,122270.0,4.68823273]
[1759588534455,3.17231638,122280.0,122270.0,4.52466031]
[1759588534671,3.17231638,122280.0,122270.0,4.68823273]
[1759588537876,3.17231638,122280.0,122270.0,4.52466031]
[1759588539371,3.17231638,122280.0,122270.0,4.68823273]
[1759588539586,3.17231638,122280.0,122270.0,4.52466031]
[1759588540035,3.17231638,122280.0,122270.0,4.54920336]
[1759588559059,3.17231638,122280.0,122270.0,4.46420336]
[1759588559252,3.17231638,122280.0,122270.0,4.54920336]
[1759588559463,3.17231638,122280.0,122270.0,4.47568604]
[1759588560798,3.17231638,122280.0,122270.0,4.45114299]
[1759588561276,3.1965018,122280.0,122270.0,4.45114299]
[1759588570685,3.17231638,122280.0,122270.0,4.45114299]
[1759588594817,3.17231638,122280.0,122270.0,4.13602299]
[1759588595008,3.17231638,122280.0,122270.0,4.45114299]
[1759588626700,3.17231638,122280.0,122270.0,4.25763]
[1759588638702,3.17231638,122280.0,122270.0,4.02751]
[1759588638921,3.17231638,122280.0,122270.0,4.25763]
[1759588639905,3.25653045,122280.0,122270.0,4.25763]
[1759588648260,3.25653045,122280.0,122270.0,3.94251]
[1759588648470,3.25653045,122280.0,122270.0,4.25763]
[1759588648676,3.25653045,122280.0,122270.0,3.94251]
[1759588648886,3.25653045,122280.0,122270.0,4.25763]
[1759588653649,3.25653045,122280.0,122270.0,3.94251]
[1759588653853,3.25653045,122280.0,122270.0,4.17259]
[1759588654096,3.25653045,122280.0,122270.0,4.25759]
[1759588657946,3.25653045,122280.0,122270.0,4.17259]
[1759588658158,3.25653045,122280.0,122270.0,4.25759]
[1759588661013,3.28107515,122280.0,122270.0,4.25759]
[1759588680518,0.16357242,122270.0,122260.0,0.13141149]
[1759588680697,0.16569242,122270.0,122260.0,4.72900149]
[1759588680901,0.16883242,122270.0,122260.0,4.41392149]
[1759588681099,0.16883242,122270.0,122260.0,4.07392149]
[1759588681388,0.16883242,122270.0,122260.0,4.29093947]
[1759588681606,0.19337778,122270.0,122260.0,4.29093947]
[1759588681813,0.19337778,122270.0,122260.0,4.29393947]
[1759588682030,0.19337778,122270.0,122260.0,4.29493947]
[1759588682825,0.19337778,122270.0,122260.0,3.97985947]
[1759588683041,0.19337778,122270.0,122260.0,4.29493947]
[1759588686342,0.19337778,122270.0,122260.0,3.97985947]
[1759588686754,0.19337778,122270.0,122260.0,4.29493947]
[1759588687876,0.19337778,122270.0,122260.0,4.20993947]
[1759588688076,0.19337778,122270.0,122260.0,4.29493947]
[1759588689923,0.19337778,122270.0,122260.0,4.06485947]
[1759588690056,0.19337778,122270.0,122260.0,4.29493947]
[1759588690470,0.19337778,122270.0,122260.0,0.00420384]
[1759588690678,0.8610938,122270.0,122260.0,4.44671384]
[1759588690856,0.36071391,122270.0,122260.0,0.23428384]
[1759588691725,0.36071391,122270.0,122260.0,0.23328384]
[1759588692092,0.36571391,122270.0,122260.0,0.23328384]
[1759588692296,0.36571391,122270.0,122260.0,0.23028384]
[1759588692960,0.36771391,122270.0,122260.0,0.23028384]
[1759588697578,0.36771391,122270.0,122260.0,0.00020384]
[1759588697795,0.8680938,122270.0,122260.0,0.23032384]
[1759588698223,0.8680938,122270.0,122260.0,0.00020384]
[1759588698435,0.8680938,122270.0,122260.0,0.23032384]
[1759588700744,0.8680938,122270.0,122260.0,0.00020384]
[1759588707279,0.16362595,122230.0,122220.0,0.52813518]
[1759588707499,0.16362595,122230.0,122220.0,4.55569434]
[1759588708379,0.16362595,122230.0,122220.0,4.78585434]
[1759588708571,0.16362595,122230.0,122220.0,4.79485434]
[1759588708930,0.16362595,122230.0,122220.0,4.8090363]
[1759588709778,0.16362595,122230.0,122220.0,4.83046526]
[1759588709988,0.18816497,122240.0,122220.0,4.83046526]
[1759588710204,0.18816497,122240.0,122230.0,3.94251]
[1759588711913,0.16361256,122240.0,122230.0,4.10613595]
[1759588712122,0.16361256,122240.0,122230.0,4.13468764]
[1759588712516,0.16361256,122240.0,122230.0,4.14068764]
[1759588714884,0.19635627,122250.0,122230.0,4.14068764]
[1759588715085,0.27947833,122250.0,122240.0,4.17263]
[1759588717321,0.27947833,122250.0,122240.0,4.17363]
[1759588718042,0.02455169,122250.0,122240.0,4.33724256]
[1759588718256,0.17176509,122260.0,122240.0,4.33724256]
[1759588718512,0.25488715,122260.0,122250.0,3.94251]
[1759588718717,0.28257705,122260.0,122250.0,3.94251]
[1759588718955,0.28455705,122260.0,122250.0,3.94251]
[1759588719818,0.28655705,122260.0,122250.0,3.94251]
[1759588720230,0.002,122260.0,122250.0,4.19110918]
[1759588720440,0.1655858,122260.0,122250.0,4.19110918]
[1759588720893,0.002,122260.0,122250.0,4.19110918]
[1759588721076,0.1655858,122260.0,122250.0,4.19110918]
[1759588721284,0.002,122260.0,122250.0,4.19110918]
[1759588722139,0.1655858,122260.0,122250.0,4.19110918]
[1759588722560,0.002,122260.0,122250.0,4.19110918]
[1759588724040,0.002,122260.0,122250.0,4.19131305]
[1759588728882,0.002,122260.0,122250.0,4.00495842]
[1759588729038,0.002,122260.0,122250.0,4.00495905]
[1759588729610,0.002,122260.0,122250.0,3.91995905]
[1759588729844,0.002,122260.0,122250.0,4.23511905]
[1759588732097,0.002,122260.0,122250.0,3.91995905]
[1759588732325,0.002,122260.0,122250.0,4.23511905]
[1759588735514,0.002,122260.0,122250.0,3.91995905]
[1759588735744,0.002,122260.0,122250.0,4.23511905]
[1759588736675,0.002,122260.0,122250.0,3.91995905]
[1759588736858,0.002,122260.0,122250.0,4.23511905]
[1759588737665,0.002,122260.0,122250.0,3.91995905]
[1759588737844,0.002,122260.0,122250.0,4.23511905]
[1759588739835,0.002,122260.0,122250.0,3.91995905]
[1759588740037,0.002,122260.0,122250.0,3.75635987]
[1759588740247,0.00705,122260.0,122250.0,4.07147987]
[1759588741044,0.00705,122260.0,122250.0,4.23507905]
[1759588741257,0.00705,122260.0,122250.0,3.75635987]
[1759588741841,0.1706358,122260.0,122250.0,3.75635987]
[1759588742082,0.1706358,122260.0,122250.0,4.07147987]
[1759588742292,0.1706358,122260.0,122250.0,3.91622491]
[1759588742542,0.00705,122260.0,122250.0,4.07982418]
[1759588743619,0.00705,122260.0,122250.0,3.76470418]
[1759588743832,0.1706358,122260.0,122250.0,4.07982418]
[1759588744044,0.1706358,122260.0,122250.0,3.601105]
[1759588744262,0.1706358,122260.0,122250.0,3.916225]
[1759588744596,0.1706358,122260.0,122250.0,4.07982418]
[1759588745021,0.1706358,122260.0,122250.0,3.601105]
[1759588745449,0.1706358,122260.0,122250.0,3.916225]
[1759588745783,0.20411153,122260.0,122250.0,3.831265]
[1759588746034,0.28723359,122260.0,122250.0,3.831265]
[1759588748763,0.28723359,122260.0,122250.0,3.601105]
[1759588748970,0.28723359,122260.0,122250.0,3.831265]
[1759588765764,0.28429359,122260.0,122250.0,3.831265]
[1759588765973,0.25081786,122260.0,122250.0,3.831265]
[1759588766182,0.25375786,122260.0,122250.0,3.831265]
[1759588766390,0.24870786,122260.0,122250.0,3.831265]
[1759588770335,0.1655858,122260.0,122250.0,3.831265]
[1759588771382,0.1707858,122260.0,122250.0,3.831265]
[1759588785925,0.1655858,122260.0,122250.0,3.831265]
[1759588786270,0.1655858,122260.0,122250.0,3.99486418]
[1759588787184,0.002,122260.0,122250.0,3.99486418]
[1759588787618,0.1655858,122260.0,122250.0,3.99486418]
[1759588787856,0.002,122260.0,122250.0,3.99486418]
[1759588788330,0.1655858,122260.0,122250.0,3.99486418]
[1759588789427,0.002,122260.0,122250.0,3.99486418]
[1759588789660,0.002,122260.0,122250.0,4.0683815]
[1759588790204,0.1655858,122260.0,122250.0,4.0683815]
[1759588790618,0.002,122260.0,122250.0,4.0683815]
[1759588790833,0.1655858,122260.0,122250.0,4.0683815]
[1759588792914,0.002,122260.0,122250.0,4.0683815]
[1759588793945,0.002,122260.0,122250.0,4.09292867]
[1759588801781,0.002,122260.0,122250.0,4.35941135]
[1759588802150,0.002,122260.0,122250.0,4.4620262]
[1759588802916,0.002,122260.0,122250.0,4.35937135]
[1759588803115,0.002,122260.0,122250.0,4.44437135]
[1759588807672,0.002,122260.0,122250.0,4.12925135]
[1759588807905,0.002,122260.0,122250.0,4.44445135]
[1759588809483,0.002,122260.0,122250.0,4.51788101]
[1759588809916,0.002,122260.0,122250.0,4.44445135]
[1759588811005,0.002,122260.0,122250.0,4.12925135]
[1759588811223,0.002,122260.0,122250.0,4.44445135]
[1759588813502,0.002,122260.0,122250.0,4.35941135]
[1759588813718,0.002,122260.0,122250.0,4.44441135]
[1759588819718,0.002,122260.0,122250.0,4.512846]
[1759588825409,0.002,122260.0,122250.0,4.43941135]
[1759588829730,0.002,122260.0,122250.0,4.5420262]
[1759588878920,0.002,122260.0,122250.0,4.2268662]
[1759588879132,0.002,122260.0,122250.0,4.5419462]
[1759588885695,0.00043449,122260.0,122250.0,4.65659928]
[1759588886090,0.00043449,122260.0,122250.0,4.55398443]
[1759588887555,0.00043449,122260.0,122250.0,4.4530764]
[1759588887774,0.00054739,122270.0,122260.0,0.1937377]
[1759588887967,0.00054739,122270.0,122260.0,3.8395117]
[1759588888354,0.00054739,122270.0,122260.0,3.6094317]
[1759588888557,0.00054739,122270.0,122260.0,3.94905385]
[1759588889131,0.00054739,122270.0,122260.0,3.95505385]
[1759588890337,0.00054739,122270.0,122260.0,3.96005385]
[1759588893769,0.00054739,122270.0,122260.0,3.87505385]
[1759588894163,0.00054739,122270.0,122260.0,3.96005385]
[1759588895704,0.00054739,122270.0,122260.0,3.87505385]
[1759588895907,0.00054739,122270.0,122260.0,3.96005385]
[1759588897506,0.00054739,122270.0,122260.0,4.06295801]
[1759588900042,0.00054739,122270.0,122260.0,3.74787801]
[1759588900240,0.00054739,122270.0,122260.0,4.06295801]
[1759588901958,0.00054739,122270.0,122260.0,3.74457631]
[1759588902156,0.00054739,122270.0,122260.0,3.57517795]
[1759588902361,0.00054739,122270.0,122260.0,3.89025795]
[1759588903415,0.00565739,122270.0,122260.0,3.89025795]
[1759588903813,0.00054739,122270.0,122260.0,3.89025795]
[1759588910204,0.00054739,122270.0,122260.0,3.91025795]
[1759588912209,0.00054739,122270.0,122260.0,4.01316211]
[1759588920893,0.00054739,122270.0,122260.0,3.69808211]
[1759588921526,0.00054739,122270.0,122260.0,4.01316211]
[1759588925726,0.00592739,122270.0,122260.0,4.01316211]
[1759588925927,0.00054739,122270.0,122260.0,4.01316211]
[1759588932082,0.00269739,122270.0,122260.0,4.01316211]
[1759588932293,0.00592739,122270.0,122260.0,4.01316211]
[1759588932438,0.00269739,122270.0,122260.0,4.01316211]
[1759588932655,0.00054739,122270.0,122260.0,4.01316211]
[1759588934793,0.00054739,122270.0,122260.0,3.920909]
[1759588934985,0.00054739,122270.0,122260.0,3.81800484]
[1759588935179,0.00054739,122270.0,122260.0,3.84254699]
[1759588945009,0.00054739,122270.0,122260.0,3.87189811]
[1759588965344,0.00054739,122270.0,122260.0,3.68837901]
[1759588965552,0.00054739,122270.0,122260.0,3.85196481]
[1759588965825,0.00054739,122270.0,122260.0,3.74906065]
[1759588974181,0.00054739,122270.0,122260.0,3.58547485]
[1759588974424,0.00054739,122270.0,122260.0,3.66402065]
[1759588974644,0.00054739,122270.0,122260.0,3.74902065]
[1759588974838,0.00054739,122270.0,122260.0,3.43398065]
[1759588974974,0.00054739,122270.0,122260.0,3.74902065]
[1759588975365,0.00054739,122270.0,122260.0,3.66402065]
[1759588975594,0.00552739,122270.0,122260.0,3.74902065]
[1759588976001,0.00552739,122270.0,122260.0,3.66402065]
[1759588976206,0.00054739,122270.0,122260.0,3.74902065]
[1759588976865,0.16616981,122270.0,122260.0,3.27039485]
[1759588977087,0.16909981,122270.0,122260.0,3.97443991]
[1759588977273,0.19364441,122270.0,122260.0,3.9008927]
[1759588977532,0.19364441,122270.0,122260.0,3.97443991]
[1759588978483,0.19664441,122270.0,122260.0,3.9008927]
[1759588978916,0.19664441,122270.0,122260.0,3.97443991]
[1759588980597,0.19664441,122270.0,122260.0,3.9008927]
[1759588983013,0.19664441,122270.0,122260.0,3.5858527]
[1759588983232,0.19664441,122270.0,122260.0,3.9009327]
[1759588985873,0.19664441,122270.0,122260.0,3.2458527]
[1759588986078,0.19664441,122270.0,122260.0,3.3308527]
[1759588986079,0.28085848,122270.0,122260.0,3.3308527]
[1759588986291,0.28085848,122270.0,122260.0,3.5609327]
[1759588986630,0.19664441,122270.0,122260.0,3.5609327]
[1759588997704,0.19664441,122270.0,122260.0,0.2301467]
[1759588997970,0.19664441,122270.0,122260.0,0.3151467]
[1759589000927,0.19664441,122270.0,122260.0,6.67e-05]
[1759589001148,0.19664441,122270.0,122260.0,0.3151467]
[1759589001593,0.28085848,122270.0,122260.0,0.3151467]
[1759589024730,0.28085848,122270.0,122260.0,0.2301467]
[1759589024983,0.36398054,122270.0,122260.0,0.2301467]
[1759589027430,0.36798054,122270.0,122260.0,0.2301467]
[1759589043595,0.36798054,122270.0,122260.0,6.67e-05]
[1759589043793,0.36798054,122270.0,122260.0,0.2301867]
[1759589046744,0.36798054,122270.0,122260.0,6.67e-05]
[1759589046896,0.36798054,122270.0,122260.0,0.2301867]
[1759589079064,0.36798054,122270.0,122260.0,6.67e-05]
[1759589079641,0.36798054,122270.0,122260.0,0.2301867]
[1759589080528,0.36798054,122270.0,122260.0,6.67e-05]
[1759589080707,0.36798054,122270.0,122260.0,0.2301867]
[1759589082192,0.36798054,122270.0,122260.0,6.67e-05]
[1759589082416,0.36798054,122270.0,122260.0,0.2301867]
[1759589083745,0.36798054,122270.0,122260.0,6.67e-05]
[1759589083946,0.36798054,122270.0,122260.0,0.2301867]
[1759589088414,0.36798054,122270.0,122260.0,6.67e-05]
[1759589090091,0.36498054,122270.0,122260.0,6.67e-05]
[1759589090678,0.36098054,122270.0,122260.0,6.67e-05]
[1759589091077,0.36698054,122270.0,122260.0,6.67e-05]
[1759589092046,0.37298054,122270.0,122260.0,6.67e-05]
[1759589094482,0.8734381,122270.0,122260.0,6.67e-05]
[1759589094707,0.37298054,122270.0,122260.0,6.67e-05]
[1759589098761,0.8734381,122270.0,122260.0,6.67e-05]
[1759589099350,0.37298054,122270.0,122260.0,6.67e-05]
[1759589102088,0.40313244,122270.0,122260.0,6.67e-05]
[1759589102288,0.90359,122270.0,122260.0,6.67e-05]
[1759589102489,1.13371,122270.0,122260.0,6.67e-05]
[1759589105100,0.43151159,122260.0,122250.0,0.06724]
[1759589105307,0.60197772,122260.0,122250.0,0.06728916]
[1759589105510,0.60408772,122260.0,122250.0,0.06728916]
[1759589105918,0.62864098,122260.0,122250.0,0.06728916]
[1759589106619,0.64697668,122260.0,122250.0,0.06728916]
[1759589106804,0.62864098,122260.0,122250.0,0.06728916]
[1759589107004,0.63264098,122260.0,122250.0,0.06728916]
[1759589137132,0.16361256,122240.0,122230.0,0.15854721]
[1759589137344,0.16366159,122240.0,122230.0,3.330786]
[1759589137950,0.18821485,122240.0,122230.0,3.330786]
[1759589138368,0.18821485,122240.0,122230.0,3.562906]
[1759589139659,0.18821485,122240.0,122230.0,3.566906]
[1759589140413,0.22370925,122240.0,122230.0,3.566906]
[1759589142053,0.18821485,122240.0,122230.0,3.906906]
[1759589142887,0.19023485,122240.0,122230.0,3.90731382]
[1759589143630,0.18821485,122240.0,122230.0,3.90731382]
[1759589144661,0.19023485,122240.0,122230.0,3.90731382]
[1759589146129,0.18821485,122240.0,122230.0,3.90731382]
[1759589146979,0.19023485,122240.0,122230.0,3.90731382]
[1759589147190,0.19023485,122240.0,122230.0,3.98086103]
[1759589148745,0.18821485,122240.0,122230.0,3.98086103]
[1759589149279,0.18821485,122240.0,122230.0,4.14448698]
[1759589152103,0.19023485,122240.0,122230.0,4.14448698]
[1759589160763,0.19348485,122240.0,122230.0,4.14448698]
[1759589161352,0.18821485,122240.0,122230.0,4.14448698]
[1759589161748,0.18821485,122240.0,122230.0,3.98086103]
[1759589161948,0.18821485,122240.0,122230.0,4.14448698]
[1759589162754,0.18821485,122240.0,122230.0,3.98086103]
[1759589163331,0.18821485,122240.0,122230.0,4.14448698]
[1759589167456,0.18821485,122240.0,122230.0,3.98086103]
[1759589167900,0.18821485,122240.0,122230.0,4.14448698]
[1759589172202,0.18821485,122240.0,122230.0,3.98086103]
[1759589173034,0.18821485,122240.0,122230.0,4.14448698]
[1759589173676,0.18821485,122240.0,122230.0,3.98086103]
[1759589178677,0.19020485,122240.0,122230.0,3.98086103]
[1759589180078,0.19345485,122240.0,122230.0,3.98086103]
[1759589180835,0.19345485,122240.0,122230.0,3.66574103]
[1759589181063,0.19345485,122240.0,122230.0,3.98086103]
[1759589182128,0.19345485,122240.0,122230.0,3.66574103]
[1759589182395,0.19345485,122240.0,122230.0,3.98086103]
[1759589182814,0.22916025,122240.0,122230.0,3.98086103]
[1759589183443,0.19345485,122240.0,122230.0,3.98086103]
[1759589183593,0.19345485,122240.0,122230.0,3.90731382]
[1759589187591,0.19345485,122240.0,122230.0,3.82231382]
[1759589187809,0.19345485,122240.0,122230.0,3.98086103]
[1759589191728,0.19345485,122240.0,122230.0,3.89586103]
[1759589191963,0.22916025,122240.0,122230.0,3.66574103]
[1759589192217,0.22916025,122240.0,122230.0,3.90731382]
[1759589194920,0.22916025,122240.0,122230.0,3.59219382]
[1759589195270,0.22916025,122240.0,122230.0,3.90731382]
[1759589195483,0.22916025,122240.0,122230.0,3.59219382]
[1759589195683,0.22916025,122240.0,122230.0,3.90731382]
[1759589198012,0.22916025,122240.0,122230.0,3.56731382]
[1759589201870,0.19345485,122240.0,122230.0,3.56731382]
[1759589212851,0.19345485,122240.0,122230.0,3.48231382]
[1759589213081,0.19345485,122240.0,122230.0,3.56731382]
[1759589215809,0.18821485,122240.0,122230.0,3.56731382]
[1759589216706,0.19310485,122240.0,122230.0,3.56731382]
[1759589216913,0.19016485,122240.0,122230.0,3.56731382]
[1759589218185,0.22583525,122240.0,122230.0,3.56731382]
[1759589229584,0.22907525,122240.0,122230.0,3.48231382]
[1759589230010,0.22907525,122240.0,122230.0,3.56731382]
[1759589231659,0.22907525,122240.0,122230.0,3.38181182]
[1759589234368,0.19340485,122240.0,122230.0,3.38181182]
[1759589236016,0.19340485,122240.0,122230.0,3.132467]
[1759589237248,0.19340485,122240.0,122230.0,3.362587]
[1759589244326,0.19340485,122240.0,122230.0,3.277587]
[1759589244645,0.19340485,122240.0,122230.0,3.362587]
[1759589245147,0.22910525,122240.0,122230.0,3.362587]
[1759589245903,0.22910525,122240.0,122230.0,3.047467]
[1759589246110,0.22910525,122240.0,122230.0,3.362587]
[1759589247103,0.22910525,122240.0,122230.0,3.047467]
[1759589247307,0.22910525,122240.0,122230.0,3.362587]
[1759589247503,0.22910525,122240.0,122230.0,3.047467]
[1759589247705,0.22910525,122240.0,122230.0,0.31512]
[1759589248105,0.16362595,122230.0,122220.0,0.43497617]
[1759589248309,0.16362595,122230.0,122220.0,3.79756317]
[1759589248725,0.18817921,122230.0,122220.0,3.79776711]
[1759589249889,0.18817921,122230.0,122220.0,3.80176711]
[1759589250194,0.18817921,122230.0,122220.0,3.80576711]